[Event "*** Titled Tuesday Blitz"]
[Site "Chess.com"]
[Date "2018.08.07"]
[Round "3"]
[White "Alopekos"]
[Black "platy3"]
[Result "0-1"]
[WhiteElo "2476"]
[BlackElo "2723"]
[TimeControl "180+2"]
[EndTime "13:35:01 PDT"]
[Termination "platy3 won by resignation"]

1. e4 {[%clk 0:03:01.9]} 1... c5 {[%clk 0:03:01]} 2. Nf3 {[%clk 0:02:58]} 2...
e6 {[%clk 0:03:02.2]} 3. d4 {[%clk 0:02:58.1]} 3... cxd4 {[%clk 0:03:04.1]} 4.
Nxd4 {[%clk 0:03:00]} 4... Nc6 {[%clk 0:03:06]} 5. Nc3 {[%clk 0:03:00.9]} 5...
Qc7 {[%clk 0:03:07.5]} 6. Be3 {[%clk 0:03:01.2]} 6... a6 {[%clk 0:03:09]} 7. Be2
{[%clk 0:03:02.4]} 7... Nf6 {[%clk 0:03:10.1]} 8. O-O {[%clk 0:03:02.6]} 8...
Be7 {[%clk 0:03:11.6]} 9. f4 {[%clk 0:03:00.5]} 9... d6 {[%clk 0:03:13.1]} 10.
Kh1 {[%clk 0:03:01.3]} 10... O-O {[%clk 0:03:14.1]} 11. Qe1 {[%clk 0:03:02.2]}
11... Nxd4 {[%clk 0:03:11.5]} 12. Bxd4 {[%clk 0:03:04.1]} 12... b5 {[%clk
0:03:12.9]} 13. a3 {[%clk 0:03:03.9]} 13... Bb7 {[%clk 0:03:14.2]} 14. Qg3
{[%clk 0:03:04.9]} 14... Bc6 {[%clk 0:03:14.8]} 15. e5 {[%clk 0:02:49.3]} 15...
dxe5 {[%clk 0:03:13.2]} 16. Bxe5 {[%clk 0:02:51.2]} 16... Qb7 {[%clk 0:03:12.6]}
17. f5 {[%clk 0:02:52.4]} 17... exf5 {[%clk 0:02:37.4]} 18. Rxf5 {[%clk
0:02:54.3]} 18... Ne8 {[%clk 0:02:22.5]} 19. Bd3 {[%clk 0:02:44.3]} 19... Rd8
{[%clk 0:02:19.5]} 20. Raf1 {[%clk 0:02:13.8]} 20... f6 {[%clk 0:02:13.3]} 21.
Rh5 {[%clk 0:01:48.2]} 21... Rxd3 {[%clk 0:01:59.9]} 22. cxd3 {[%clk 0:01:33.6]}
22... fxe5 {[%clk 0:01:57.7]} 23. Rxf8+ {[%clk 0:01:31.9]} 23... Bxf8 {[%clk
0:01:58.9]} 24. Rxe5 {[%clk 0:01:32.9]} 24... Nf6 {[%clk 0:01:55.6]} 25. Rf5
{[%clk 0:01:23.3]} 25... Qe7 {[%clk 0:01:53.5]} 26. h3 {[%clk 0:01:14.4]} 26...
Qe6 {[%clk 0:01:52.1]} 27. Qe5 {[%clk 0:01:05.9]} 27... Qxe5 {[%clk 0:01:45.3]}
28. Rxe5 {[%clk 0:01:07.8]} 28... Kf7 {[%clk 0:01:46.7]} 29. d4 {[%clk
0:01:02.8]} 29... Bd6 {[%clk 0:01:46.4]} 30. Re1 {[%clk 0:00:58.1]} 30... a5
{[%clk 0:01:43.5]} 31. d5 {[%clk 0:00:22.3]} 31... Nxd5 {[%clk 0:01:35]} 32. Ne4
{[%clk 0:00:19.4]} 32... Be7 {[%clk 0:01:35.1]} 33. Rc1 {[%clk 0:00:19.7]} 33...
Bd7 {[%clk 0:01:33.7]} 34. Nc5 {[%clk 0:00:14.9]} 34... Be8 {[%clk 0:01:29]} 35.
Nb3 {[%clk 0:00:12.5]} 35... a4 {[%clk 0:01:30.3]} 36. Nd4 {[%clk 0:00:13.6]}
36... Bf6 {[%clk 0:01:31.6]} 37. Nxb5 {[%clk 0:00:12.2]} 37... Bxb5 {[%clk
0:01:31.8]} 38. Rc5 {[%clk 0:00:13.5]} 38... Be8 {[%clk 0:01:19.1]} 39. Rxd5
{[%clk 0:00:13.1]} 39... Bxb2 {[%clk 0:01:20.7]} 40. Rd3 {[%clk 0:00:12]} 40...
Bf6 {[%clk 0:01:20]} 41. Re3 {[%clk 0:00:12.9]} 41... Bd7 {[%clk 0:01:18.8]} 42.
g4 {[%clk 0:00:12.9]} 42... Bd4 {[%clk 0:01:16.6]} 43. Rd3 {[%clk 0:00:12.1]}
43... Bc6+ {[%clk 0:01:17.7]} 44. Kh2 {[%clk 0:00:13.5]} 44... Be5+ {[%clk
0:01:18.6]} 45. Kg1 {[%clk 0:00:14.9]} 45... Ke6 {[%clk 0:01:19.9]} 46. Kf2
{[%clk 0:00:15.2]} 46... Be4 {[%clk 0:01:19.6]} 47. Rd8 {[%clk 0:00:13.5]} 47...
Bd6 {[%clk 0:01:20.7]} 48. Re8+ {[%clk 0:00:12.5]} 48... Kd5 {[%clk 0:01:21.8]}
49. Ra8 {[%clk 0:00:09.2]} 49... Bc2 {[%clk 0:01:22.9]} 50. Ra7 {[%clk
0:00:05.4]} 50... Bxa3 {[%clk 0:01:17.4]} 51. Rxg7 {[%clk 0:00:06]} 51... Bb2
{[%clk 0:01:16.7]} 52. Rc7 {[%clk 0:00:03.9]} 52... Bb1 {[%clk 0:01:07.5]} 53.
Kf3 {[%clk 0:00:03.3]} 53... a3 {[%clk 0:01:08.3]} 54. Kf4 {[%clk 0:00:03.2]}
54... Be5+ {[%clk 0:01:08.3]} 0-1

[Event "*** Titled Tuesday Blitz"]
[Site "Chess.com"]
[Date "2018.08.07"]
[Round "3"]
[White "RitvarsReimanis"]
[Black "nonscitis"]
[Result "1/2-1/2"]
[WhiteElo "2434"]
[BlackElo "2446"]
[TimeControl "180+2"]
[EndTime "13:35:26 PDT"]
[Termination "Game drawn by repetition"]

1. d4 {[%clk 0:03:01.9]} 1... d5 {[%clk 0:02:58.7]} 2. c4 {[%clk 0:02:57.5]}
2... c6 {[%clk 0:02:59.7]} 3. Nf3 {[%clk 0:02:58.3]} 3... Nf6 {[%clk 0:02:58.8]}
4. e3 {[%clk 0:02:59.3]} 4... e6 {[%clk 0:02:52.4]} 5. b3 {[%clk 0:02:59.5]}
5... Bd6 {[%clk 0:02:51.4]} 6. Bb2 {[%clk 0:03:00.3]} 6... O-O {[%clk
0:02:51.8]} 7. Nbd2 {[%clk 0:03:01.4]} 7... Nbd7 {[%clk 0:02:52.9]} 8. Bd3
{[%clk 0:03:01]} 8... Qc7 {[%clk 0:02:52.4]} 9. Rc1 {[%clk 0:02:58.3]} 9... e5
{[%clk 0:02:47.8]} 10. cxd5 {[%clk 0:02:56.6]} 10... Nxd5 {[%clk 0:02:33.6]} 11.
O-O {[%clk 0:02:41]} 11... exd4 {[%clk 0:02:29.7]} 12. Bxd4 {[%clk 0:02:37.9]}
12... h6 {[%clk 0:02:16]} 13. Nc4 {[%clk 0:02:35]} 13... Re8 {[%clk 0:02:04.9]}
14. Nxd6 {[%clk 0:02:22.7]} 14... Qxd6 {[%clk 0:02:06.8]} 15. Nd2 {[%clk
0:02:13.4]} 15... Ne5 {[%clk 0:02:04.6]} 16. Nc4 {[%clk 0:02:03.2]} 16... Nxc4
{[%clk 0:02:03.1]} 17. bxc4 {[%clk 0:01:50.9]} 17... Nf6 {[%clk 0:02:03.4]} 18.
c5 {[%clk 0:01:47.6]} 18... Qd8 {[%clk 0:02:03.3]} 19. Qf3 {[%clk 0:01:29.6]}
19... Be6 {[%clk 0:02:02.3]} 20. Rb1 {[%clk 0:01:25]} 20... Bd5 {[%clk
0:01:53.1]} 21. Qg3 {[%clk 0:01:20.2]} 21... Rb8 {[%clk 0:01:45.9]} 22. a4
{[%clk 0:01:06]} 22... Nh5 {[%clk 0:01:39.7]} 23. Qg4 {[%clk 0:00:39.8]} 23...
Nf6 {[%clk 0:01:38.6]} 24. Qh4 {[%clk 0:00:33.5]} 24... Ne4 {[%clk 0:01:29.5]}
25. Qxd8 {[%clk 0:00:34]} 25... Rexd8 {[%clk 0:01:27.2]} 26. Bxe4 {[%clk
0:00:35.1]} 26... Bxe4 {[%clk 0:01:27.7]} 27. Rb4 {[%clk 0:00:35.2]} 27... Rd7
{[%clk 0:01:18.1]} 28. Be5 {[%clk 0:00:33]} 28... Re8 {[%clk 0:01:05.3]} 29.
Rxe4 {[%clk 0:00:32.8]} 29... Rde7 {[%clk 0:01:05.8]} 30. Rb4 {[%clk 0:00:27.7]}
30... Rxe5 {[%clk 0:01:05.6]} 31. Rxb7 {[%clk 0:00:28.7]} 31... a5 {[%clk
0:00:59.6]} 32. Rc1 {[%clk 0:00:26.1]} 32... Re4 {[%clk 0:01:00]} 33. Rb6 {[%clk
0:00:16.6]} 33... R8e6 {[%clk 0:00:59.9]} 34. Ra1 {[%clk 0:00:17.7]} 34... Rc4
{[%clk 0:00:59.6]} 35. Ra6 {[%clk 0:00:18.8]} 35... Rxc5 {[%clk 0:01:00.4]} 36.
g4 {[%clk 0:00:19.3]} 36... h5 {[%clk 0:00:52.7]} 37. h3 {[%clk 0:00:20.3]}
37... hxg4 {[%clk 0:00:53.1]} 38. hxg4 {[%clk 0:00:22.2]} 38... Rg5 {[%clk
0:00:52.6]} 39. f3 {[%clk 0:00:23.1]} 39... Rxe3 {[%clk 0:00:52.4]} 40. Kg2
{[%clk 0:00:25]} 40... Rc5 {[%clk 0:00:44.8]} 41. Ra2 {[%clk 0:00:22.5]} 41...
g6 {[%clk 0:00:44.2]} 42. Rd2 {[%clk 0:00:21.3]} 42... Rcc3 {[%clk 0:00:40.1]}
43. Rf2 {[%clk 0:00:22.5]} 43... Rc5 {[%clk 0:00:39.5]} 44. Rd2 {[%clk
0:00:23.5]} 44... Kg7 {[%clk 0:00:35.8]} 45. Ra7 {[%clk 0:00:23.6]} 45... Rcc3
{[%clk 0:00:27.6]} 46. Rf2 {[%clk 0:00:25.2]} 46... Re5 {[%clk 0:00:27.7]} 47.
Rd2 {[%clk 0:00:26]} 47... Ree3 {[%clk 0:00:13.8]} 48. Rf2 {[%clk 0:00:27.1]}
48... Re5 {[%clk 0:00:06]} 49. Rd2 {[%clk 0:00:26.4]} 49... Ree3 {[%clk
0:00:05.2]} 50. Rf2 {[%clk 0:00:27.2]} 50... Rc5 {[%clk 0:00:05.3]} 51. Rd2
{[%clk 0:00:27.5]} 51... Rcc3 {[%clk 0:00:04.6]} 52. Rf2 {[%clk 0:00:27.8]}
52... Re5 {[%clk 0:00:04.4]} 53. Rd2 {[%clk 0:00:26]} 53... Ree3 {[%clk
0:00:05.2]} 1/2-1/2

[Event "*** Titled Tuesday Blitz"]
[Site "Chess.com"]
[Date "2018.08.07"]
[Round "3"]
[White "Oleksandr_Bortnyk"]
[Black "JonahWillow"]
[Result "0-1"]
[WhiteElo "2752"]
[BlackElo "2626"]
[TimeControl "180+2"]
[EndTime "13:35:31 PDT"]
[Termination "JonahWillow won by resignation"]

1. d4 {[%clk 0:03:01.9]} 1... Nf6 {[%clk 0:03:00.9]} 2. Nc3 {[%clk 0:03:01.1]}
2... c5 {[%clk 0:03:00]} 3. e3 {[%clk 0:02:59.9]} 3... g6 {[%clk 0:02:57.3]} 4.
Be2 {[%clk 0:02:58.2]} 4... Bg7 {[%clk 0:02:56.3]} 5. Nf3 {[%clk 0:02:42.9]}
5... O-O {[%clk 0:02:56.7]} 6. dxc5 {[%clk 0:02:34.3]} 6... Qa5 {[%clk
0:02:47.5]} 7. O-O {[%clk 0:02:34.1]} 7... Qxc5 {[%clk 0:02:47.9]} 8. Rb1 {[%clk
0:02:31.8]} 8... d6 {[%clk 0:02:41]} 9. Bd2 {[%clk 0:02:28.1]} 9... Be6 {[%clk
0:02:36.2]} 10. b4 {[%clk 0:02:28.9]} 10... Qc8 {[%clk 0:02:36.1]} 11. Nd4
{[%clk 0:02:30.4]} 11... Bc4 {[%clk 0:02:33.3]} 12. Re1 {[%clk 0:02:19.4]} 12...
d5 {[%clk 0:02:27.2]} 13. Na4 {[%clk 0:02:03.5]} 13... e5 {[%clk 0:02:20.6]} 14.
Bxc4 {[%clk 0:02:03.9]} 14... Qxc4 {[%clk 0:02:08.2]} 15. Nb2 {[%clk 0:01:46.7]}
15... Qc7 {[%clk 0:01:52]} 16. Nb5 {[%clk 0:01:39]} 16... Qb6 {[%clk 0:01:52.1]}
17. a4 {[%clk 0:01:40.9]} 17... a6 {[%clk 0:01:52.6]} 18. Na3 {[%clk 0:01:40.8]}
18... Rd8 {[%clk 0:01:47.6]} 19. c4 {[%clk 0:01:41.3]} 19... Nc6 {[%clk
0:01:35.1]} 20. c5 {[%clk 0:01:37.2]} 20... Qc7 {[%clk 0:01:30.7]} 21. Qb3
{[%clk 0:01:37.4]} 21... Ne4 {[%clk 0:01:28.5]} 22. Rbd1 {[%clk 0:01:33.2]}
22... a5 {[%clk 0:01:19]} 23. Nb5 {[%clk 0:01:17.2]} 23... Qe7 {[%clk
0:01:19.4]} 24. Nd3 {[%clk 0:01:18.2]} 24... axb4 {[%clk 0:01:18.5]} 25. Bxb4
{[%clk 0:01:19.2]} 25... Nxb4 {[%clk 0:01:09.5]} 26. Qxb4 {[%clk 0:00:50.8]}
26... Rdc8 {[%clk 0:01:10.3]} 27. Nd6 {[%clk 0:00:47]} 27... Nxd6 {[%clk
0:01:02.4]} 28. cxd6 {[%clk 0:00:48.9]} 28... Qd7 {[%clk 0:01:04]} 29. Rb1
{[%clk 0:00:32.7]} 29... Rd8 {[%clk 0:00:23.9]} 30. Qxb7 {[%clk 0:00:22.4]}
30... Qxd6 {[%clk 0:00:25.4]} 31. Qb5 {[%clk 0:00:20.3]} 31... e4 {[%clk
0:00:23.5]} 32. Nf4 {[%clk 0:00:20.7]} 32... Be5 {[%clk 0:00:22.5]} 33. g3
{[%clk 0:00:19.6]} 33... Rdb8 {[%clk 0:00:22.7]} 34. Qe2 {[%clk 0:00:12]} 34...
Bxf4 {[%clk 0:00:21.1]} 35. exf4 {[%clk 0:00:10.2]} 35... Rxa4 {[%clk
0:00:21.7]} 36. Rxb8+ {[%clk 0:00:09.4]} 36... Qxb8 {[%clk 0:00:23.6]} 37. Rd1
{[%clk 0:00:10.8]} 37... Qb3 {[%clk 0:00:21.5]} 38. Rc1 {[%clk 0:00:04.5]} 38...
Rc4 {[%clk 0:00:21.5]} 39. Ra1 {[%clk 0:00:05.1]} 39... Qc3 {[%clk 0:00:19.9]}
40. Rd1 {[%clk 0:00:04.5]} 40... Rd4 {[%clk 0:00:19.2]} 41. Rb1 {[%clk
0:00:04.2]} 41... Kg7 {[%clk 0:00:20.3]} 42. h4 {[%clk 0:00:04.9]} 42... Rd2
{[%clk 0:00:21.3]} 43. Qe1 {[%clk 0:00:05.4]} 43... Qd3 {[%clk 0:00:18.7]} 44.
h5 {[%clk 0:00:06.3]} 44... Re2 {[%clk 0:00:18.4]} 45. Qf1 {[%clk 0:00:03.2]}
45... Qf3 {[%clk 0:00:16.3]} 46. Re1 {[%clk 0:00:03.1]} 46... Rxe1 {[%clk
0:00:16.5]} 47. Qxe1 {[%clk 0:00:05]} 47... d4 {[%clk 0:00:18.1]} 48. hxg6
{[%clk 0:00:05.5]} 48... hxg6 {[%clk 0:00:20]} 49. Qa1 {[%clk 0:00:06.3]} 49...
Qc3 {[%clk 0:00:21]} 50. Qa8 {[%clk 0:00:06]} 50... d3 {[%clk 0:00:21.6]} 51.
Qd5 {[%clk 0:00:06]} 51... d2 {[%clk 0:00:21.7]} 52. Kh2 {[%clk 0:00:07.5]}
52... e3 {[%clk 0:00:19.8]} 53. fxe3 {[%clk 0:00:06]} 53... Qxe3 {[%clk
0:00:21.7]} 54. Kh3 {[%clk 0:00:06.9]} 54... Qe6+ {[%clk 0:00:21.2]} 0-1

[Event "*** Titled Tuesday Blitz"]
[Site "Chess.com"]
[Date "2018.08.07"]
[Round "3"]
[White "chenrip"]
[Black "nOcHeaTiNgKiD"]
[Result "0-1"]
[WhiteElo "2438"]
[BlackElo "2391"]
[TimeControl "180+2"]
[EndTime "13:35:36 PDT"]
[Termination "nOcHeaTiNgKiD won by resignation"]

1. e4 {[%clk 0:03:01.9]} 1... e5 {[%clk 0:03:00.6]} 2. Nf3 {[%clk 0:03:02.6]}
2... Nc6 {[%clk 0:03:01.9]} 3. d4 {[%clk 0:03:03.9]} 3... exd4 {[%clk
0:03:02.7]} 4. Nxd4 {[%clk 0:03:04.8]} 4... Nf6 {[%clk 0:02:59.7]} 5. Nxc6
{[%clk 0:03:04.8]} 5... bxc6 {[%clk 0:03:00.9]} 6. e5 {[%clk 0:03:06.3]} 6...
Qe7 {[%clk 0:03:02.1]} 7. Qe2 {[%clk 0:03:07.1]} 7... Nd5 {[%clk 0:03:02.6]} 8.
c4 {[%clk 0:03:08.1]} 8... Nb6 {[%clk 0:03:01.8]} 9. Nc3 {[%clk 0:03:00.4]} 9...
Ba6 {[%clk 0:02:54.9]} 10. b3 {[%clk 0:03:00.9]} 10... O-O-O {[%clk 0:02:51.1]}
11. Bb2 {[%clk 0:02:53]} 11... Re8 {[%clk 0:02:50.1]} 12. f4 {[%clk 0:02:49.2]}
12... f6 {[%clk 0:02:50.6]} 13. Ne4 {[%clk 0:02:44.3]} 13... fxe5 {[%clk
0:02:40.5]} 14. fxe5 {[%clk 0:02:44.3]} 14... d5 {[%clk 0:02:35.7]} 15. Qg4+
{[%clk 0:02:37.8]} 15... Kb8 {[%clk 0:02:28.8]} 16. cxd5 {[%clk 0:02:38.3]}
16... Bxf1 {[%clk 0:01:41.1]} 17. Rxf1 {[%clk 0:02:31.5]} 17... cxd5 {[%clk
0:01:40]} 18. Nd2 {[%clk 0:02:31]} 18... Qb4 {[%clk 0:01:34.4]} 19. Qxb4 {[%clk
0:02:20.5]} 19... Bxb4 {[%clk 0:01:34.5]} 20. Rf7 {[%clk 0:02:06.6]} 20... Rhf8
{[%clk 0:01:24.1]} 21. Rxf8 {[%clk 0:02:03.7]} 21... Rxf8 {[%clk 0:01:23.9]} 22.
O-O-O {[%clk 0:01:48]} 22... Rf2 {[%clk 0:01:19.8]} 23. Nf3 {[%clk 0:01:40.3]}
23... Rxg2 {[%clk 0:01:12.4]} 24. Nd4 {[%clk 0:01:37]} 24... c5 {[%clk
0:00:57.6]} 25. Nc6+ {[%clk 0:01:23.1]} 25... Kc7 {[%clk 0:00:58.1]} 26. Nxb4
{[%clk 0:01:24.4]} 26... cxb4 {[%clk 0:00:59.2]} 27. Rf1 {[%clk 0:01:19.4]}
27... Kd7 {[%clk 0:00:47.3]} 28. Rf7+ {[%clk 0:01:16.6]} 28... Ke6 {[%clk
0:00:48.3]} 29. Rxa7 {[%clk 0:01:18]} 29... Rg1+ {[%clk 0:00:49.1]} 30. Kc2
{[%clk 0:01:18.7]} 30... Rg2+ {[%clk 0:00:50.1]} 31. Kb1 {[%clk 0:01:20.1]}
31... Rg1+ {[%clk 0:00:47.9]} 32. Kc2 {[%clk 0:01:20.7]} 32... Rg2+ {[%clk
0:00:45.2]} 33. Kb1 {[%clk 0:01:22]} 33... Rxh2 {[%clk 0:00:38.3]} 34. Ra6
{[%clk 0:01:19.1]} 34... Rh1+ {[%clk 0:00:38.2]} 35. Kc2 {[%clk 0:01:20.1]}
35... Rh2+ {[%clk 0:00:39.1]} 36. Kc1 {[%clk 0:01:21.6]} 36... Rh1+ {[%clk
0:00:39.2]} 37. Kc2 {[%clk 0:01:22.8]} 37... Rh2+ {[%clk 0:00:40.5]} 38. Kc1
{[%clk 0:01:24]} 38... Rh1+ {[%clk 0:00:41.7]} 39. Kc2 {[%clk 0:01:25.4]} 39...
Rh2+ {[%clk 0:00:43]} 40. Kb1 {[%clk 0:01:27]} 40... Rh1+ {[%clk 0:00:43.5]} 41.
Bc1 {[%clk 0:01:26.2]} 41... Kxe5 {[%clk 0:00:39.3]} 42. Rxb6 {[%clk 0:01:27.4]}
42... g5 {[%clk 0:00:39.5]} 43. Rxb4 {[%clk 0:01:27.2]} 43... h5 {[%clk
0:00:40.3]} 44. Rb8 {[%clk 0:01:21.4]} 44... g4 {[%clk 0:00:37.8]} 45. Rg8
{[%clk 0:01:22.2]} 45... Rg1 {[%clk 0:00:35.9]} 46. a4 {[%clk 0:01:22.5]} 46...
h4 {[%clk 0:00:35.1]} 47. a5 {[%clk 0:01:23.9]} 47... h3 {[%clk 0:00:35.5]} 48.
a6 {[%clk 0:01:24.1]} 48... h2 {[%clk 0:00:35]} 49. Re8+ {[%clk 0:00:39.2]}
49... Kd4 {[%clk 0:00:23]} 50. Kb2 {[%clk 0:00:34.6]} 50... Rxc1 {[%clk
0:00:13.5]} 51. Kxc1 {[%clk 0:00:28.4]} 51... h1=Q+ {[%clk 0:00:14.5]} 52. Kb2
{[%clk 0:00:29.9]} 52... Qh2+ {[%clk 0:00:14.1]} 53. Ka3 {[%clk 0:00:29.2]}
53... Qd6+ {[%clk 0:00:15]} 54. Kb2 {[%clk 0:00:30.7]} 54... Qxa6 {[%clk
0:00:15.7]} 55. Rg8 {[%clk 0:00:32.1]} 55... Qe2+ {[%clk 0:00:15.2]} 56. Ka3
{[%clk 0:00:33.1]} 56... Qf3 {[%clk 0:00:16.2]} 57. Kb4 {[%clk 0:00:32.3]} 57...
g3 {[%clk 0:00:17.4]} 58. Rh8 {[%clk 0:00:32.1]} 58... g2 {[%clk 0:00:16.2]} 0-1

[Event "*** Titled Tuesday Blitz"]
[Site "Chess.com"]
[Date "2018.08.07"]
[Round "3"]
[White "BillieKimbah"]
[Black "KamilPlichta"]
[Result "1-0"]
[WhiteElo "2825"]
[BlackElo "2605"]
[TimeControl "180+2"]
[EndTime "13:35:38 PDT"]
[Termination "BillieKimbah won by resignation"]

1. Nf3 {[%clk 0:03:00.4]} 1... g6 {[%clk 0:03:01.4]} 2. e4 {[%clk 0:02:59.3]}
2... Bg7 {[%clk 0:03:02.7]} 3. d4 {[%clk 0:03:00]} 3... c5 {[%clk 0:03:04.2]} 4.
c4 {[%clk 0:02:58.4]} 4... cxd4 {[%clk 0:03:05.1]} 5. Nxd4 {[%clk 0:02:59.5]}
5... Nc6 {[%clk 0:03:06.7]} 6. Be3 {[%clk 0:03:00.2]} 6... Nf6 {[%clk
0:03:08.1]} 7. Nc3 {[%clk 0:02:59.9]} 7... O-O {[%clk 0:03:09.3]} 8. Be2 {[%clk
0:02:59.7]} 8... d6 {[%clk 0:03:10.7]} 9. O-O {[%clk 0:02:58.9]} 9... Nxd4
{[%clk 0:03:12.3]} 10. Bxd4 {[%clk 0:02:59.2]} 10... Bd7 {[%clk 0:03:14.2]} 11.
Qc2 {[%clk 0:02:45.9]} 11... Bc6 {[%clk 0:03:10.4]} 12. Rad1 {[%clk 0:02:45.7]}
12... Nd7 {[%clk 0:03:07.7]} 13. Bxg7 {[%clk 0:02:44]} 13... Kxg7 {[%clk
0:03:08.9]} 14. h3 {[%clk 0:02:36.6]} 14... a5 {[%clk 0:03:08.6]} 15. Bg4 {[%clk
0:02:34.6]} 15... Ne5 {[%clk 0:02:53.7]} 16. c5 {[%clk 0:02:34.8]} 16... Nxg4
{[%clk 0:02:54.9]} 17. hxg4 {[%clk 0:02:35.4]} 17... Rc8 {[%clk 0:02:39.9]} 18.
Rd2 {[%clk 0:02:14]} 18... Qd7 {[%clk 0:02:40.3]} 19. Qd1 {[%clk 0:02:08.7]}
19... Rfd8 {[%clk 0:02:29.6]} 20. cxd6 {[%clk 0:02:07.2]} 20... exd6 {[%clk
0:02:29.5]} 21. Rd4 {[%clk 0:01:59.5]} 21... Qe6 {[%clk 0:02:22.6]} 22. f3
{[%clk 0:01:55]} 22... Rd7 {[%clk 0:02:03.1]} 23. Qd2 {[%clk 0:01:54.6]} 23...
Rcd8 {[%clk 0:01:45.6]} 24. Rd1 {[%clk 0:01:55.2]} 24... Qe5 {[%clk 0:01:43.6]}
25. Kf2 {[%clk 0:01:46.6]} 25... Qh2 {[%clk 0:01:33.1]} 26. Qg5 {[%clk
0:01:28.2]} 26... Qe5 {[%clk 0:01:18.8]} 27. Qe3 {[%clk 0:01:26.7]} 27... Qh2
{[%clk 0:01:19.1]} 28. Nd5 {[%clk 0:01:24.7]} 28... a4 {[%clk 0:01:06.5]} 29.
R4d2 {[%clk 0:01:23.2]} 29... Bxd5 {[%clk 0:01:01.3]} 30. Rxd5 {[%clk
0:01:22.8]} 30... Rc8 {[%clk 0:01:01.2]} 31. Qd4+ {[%clk 0:01:17]} 31... Kg8
{[%clk 0:01:02.2]} 32. Qxa4 {[%clk 0:01:17.5]} 32... Rdc7 {[%clk 0:00:58.6]} 33.
R5d2 {[%clk 0:01:15.3]} 33... h5 {[%clk 0:00:55.3]} 34. gxh5 {[%clk 0:01:14.8]}
34... Qxh5 {[%clk 0:00:56.4]} 35. Qd4 {[%clk 0:01:12.8]} 35... Qh4+ {[%clk
0:00:54]} 36. Kg1 {[%clk 0:01:12.3]} 36... Rc6 {[%clk 0:00:54.6]} 37. Qf2 {[%clk
0:01:11.1]} 37... Qf6 {[%clk 0:00:54.7]} 38. Qg3 {[%clk 0:01:08.6]} 38... Kg7
{[%clk 0:00:43]} 39. b3 {[%clk 0:01:04.1]} 39... Ra8 {[%clk 0:00:40.7]} 40. a4
{[%clk 0:01:02]} 40... Qc3 {[%clk 0:00:39.6]} 41. Rd3 {[%clk 0:01:01.1]} 41...
Qc2 {[%clk 0:00:40.8]} 42. Qf2 {[%clk 0:01:00.1]} 42... Qc5 {[%clk 0:00:26.6]}
43. Rd5 {[%clk 0:00:55.2]} 43... Qc3 {[%clk 0:00:23.6]} 44. Qd4+ {[%clk
0:00:53.5]} 44... Qxd4+ {[%clk 0:00:25]} 45. R1xd4 {[%clk 0:00:53.9]} 45... Raa6
{[%clk 0:00:24.6]} 46. Rb5 {[%clk 0:00:53.1]} 46... Rc1+ {[%clk 0:00:23.4]} 47.
Kf2 {[%clk 0:00:53.6]} 47... Rc2+ {[%clk 0:00:25]} 48. Kg3 {[%clk 0:00:54.8]}
48... Rb2 {[%clk 0:00:19.1]} 49. Rc4 {[%clk 0:00:42.8]} 49... Rc6 {[%clk
0:00:17.6]} 50. Rxc6 {[%clk 0:00:35.5]} 50... bxc6 {[%clk 0:00:18.8]} 51. Rb6
{[%clk 0:00:34.9]} 51... c5 {[%clk 0:00:20.2]} 52. a5 {[%clk 0:00:35.8]} 52...
Ra2 {[%clk 0:00:14.1]} 53. a6 {[%clk 0:00:36.4]} 53... Kf8 {[%clk 0:00:12.3]}
54. Rxd6 {[%clk 0:00:35.9]} 54... Ke7 {[%clk 0:00:09.5]} 55. Rc6 {[%clk
0:00:36.9]} 55... Kd7 {[%clk 0:00:11]} 56. Rxc5 {[%clk 0:00:36.3]} 56... Rxa6
{[%clk 0:00:11.7]} 57. Rb5 {[%clk 0:00:36.9]} 57... Ra3 {[%clk 0:00:10.9]} 58.
Kf4 {[%clk 0:00:37.2]} 58... Kc6 {[%clk 0:00:12.3]} 59. Rb8 {[%clk 0:00:37.8]}
59... Kc7 {[%clk 0:00:13.5]} 60. Rf8 {[%clk 0:00:38.8]} 1-0